[Event "Titled Tuesday Blitz May 24 Late 2022"]
[White "Pranav, V"]
[Black "Drygalov, Andrey"]
[WhiteFideId "25060783"]
[BlackFideId "24171735"]
[WhiteElo "2349"]
[BlackElo "2540"]
[Result "0-1"]
[Round "11"]
[TimeControl "180+1"]
[Date "2022.05.24"]
[WhiteClock "0:00:06"]
[BlackClock "0:00:20"]

1. Nf3 {[%clk 0:02:52]}  d5 {[%clk 0:02:59]} 2. b3 {[%clk 0:02:52]}  Nf6 {[%clk 0:02:58]} 3. Bb2 {[%clk 0:02:30]}  Bf5 {[%clk 0:02:57]} 4. g3 {[%clk 0:02:31]}  e6 {[%clk 0:02:57]} 5. Bg2 {[%clk 0:02:31]}  Be7 {[%clk 0:02:57]} 6. O-O {[%clk 0:02:32]}  O-O {[%clk 0:02:58]} 7. c4 {[%clk 0:02:33]}  h6 {[%clk 0:02:58]} 8. d3 {[%clk 0:02:33]}  c6 {[%clk 0:02:59]} 9. Nc3 {[%clk 0:02:34]}  Nbd7 {[%clk 0:02:58]} 10. Re1 {[%clk 0:02:34]}  Bh7 {[%clk 0:02:57]} 11. e4 {[%clk 0:02:34]}  dxe4 {[%clk 0:02:57]} 12. dxe4 {[%clk 0:02:35]}  Nc5 {[%clk 0:02:57]} 13. Nd4 {[%clk 0:02:25]}  e5 {[%clk 0:02:44]} 14. Nf5 {[%clk 0:02:18]}  Bxf5 {[%clk 0:02:44]} 15. exf5 {[%clk 0:02:16]}  Nd3 {[%clk 0:02:43]} 16. Re2 {[%clk 0:02:16]}  Nxb2 {[%clk 0:02:43]} 17. Rxb2 {[%clk 0:02:17]}  Bc5 {[%clk 0:02:42]} 18. Rd2 {[%clk 0:02:10]}  Bd4 {[%clk 0:02:41]} 19. Ne4 {[%clk 0:02:09]}  Qe7 {[%clk 0:02:37]} 20. Rb1 {[%clk 0:02:06]}  Rad8 {[%clk 0:02:36]} 21. Qe2 {[%clk 0:02:05]}  Rd7 {[%clk 0:02:30]} 22. Rbd1 {[%clk 0:02:00]}  Rfd8 {[%clk 0:02:30]} 23. Nxf6+ {[%clk 0:01:56]}  Qxf6 {[%clk 0:02:30]} 24. Be4 {[%clk 0:01:56]}  a5 {[%clk 0:02:29]} 25. Kg2 {[%clk 0:01:56]}  Qe7 {[%clk 0:02:23]} 26. Rd3 {[%clk 0:01:54]}  Rd6 {[%clk 0:02:17]} 27. h4 {[%clk 0:01:52]}  Bc5 {[%clk 0:02:14]} 28. Rxd6 {[%clk 0:01:49]}  Rxd6 {[%clk 0:02:15]} 29. Rxd6 {[%clk 0:01:49]}  Qxd6 {[%clk 0:02:15]} 30. Qf3 {[%clk 0:01:50]}  Kf8 {[%clk 0:02:10]} 31. Qe2 {[%clk 0:01:22]}  Qd4 {[%clk 0:02:06]} 32. Qf3 {[%clk 0:01:15]}  Ke7 {[%clk 0:02:05]} 33. Qe2 {[%clk 0:01:13]}  Kf6 {[%clk 0:01:58]} 34. Bb1 {[%clk 0:01:05]}  Ke7 {[%clk 0:01:51]} 35. Be4 {[%clk 0:00:49]}  f6 {[%clk 0:01:48]} 36. Bb1 {[%clk 0:00:48]}  Kd6 {[%clk 0:01:45]} 37. Be4 {[%clk 0:00:44]}  Kc7 {[%clk 0:01:45]} 38. Qe1 {[%clk 0:00:42]}  Kd6 {[%clk 0:01:40]} 39. Bf3 {[%clk 0:00:40]}  Bb4 {[%clk 0:01:31]} 40. Qe2 {[%clk 0:00:39]}  Bc5 {[%clk 0:01:31]} 41. Be4 {[%clk 0:00:37]}  Kc7 {[%clk 0:01:28]} 42. Qe1 {[%clk 0:00:35]}  Kd6 {[%clk 0:01:20]} 43. Kh3 {[%clk 0:00:21]}  Qxf2 {[%clk 0:01:13]} 44. Qxa5 {[%clk 0:00:19]}  Qf1+ {[%clk 0:01:12]} 45. Kg4 {[%clk 0:00:15]}  Qe2+ {[%clk 0:01:03]} 46. Bf3 {[%clk 0:00:13]}  h5+ {[%clk 0:01:03]} 47. Kxh5 {[%clk 0:00:12]}  Qxf3+ {[%clk 0:01:03]} 48. g4 {[%clk 0:00:13]}  e4 {[%clk 0:00:50]} 49. b4 {[%clk 0:00:11]}  Qe3 {[%clk 0:00:20]} 50. Qd8+ {[%clk 0:00:08]}  Ke5 {[%clk 0:00:21]} 51. bxc5 {[%clk 0:00:06]}  Qh6# {[%clk 0:00:20]} 0-1


[Site "https://www.chess.com"]

[Event "Titled Tuesday Blitz May 24 Late 2022"]
[White "Prieto Aranguren, Alain"]
[Black "Keller, Peter"]
[WhiteFideId "2268906"]
[BlackFideId "1272105"]
[WhiteElo "2235"]
[BlackElo "2275"]
[Result "1-0"]
[Round "11"]
[TimeControl "180+1"]
[Date "2022.05.25"]
[WhiteClock "0:00:49"]
[BlackClock "0:00:08"]

1. d4 {[%clk 0:02:56]}  d5 {[%clk 0:02:59]} 2. c4 {[%clk 0:02:55]}  c6 {[%clk 0:02:59]} 3. Nf3 {[%clk 0:02:55]}  Nf6 {[%clk 0:02:59]} 4. Nc3 {[%clk 0:02:55]}  dxc4 {[%clk 0:02:57]} 5. a4 {[%clk 0:02:55]}  Bf5 {[%clk 0:02:57]} 6. e3 {[%clk 0:02:55]}  e6 {[%clk 0:02:55]} 7. Bxc4 {[%clk 0:02:54]}  Bb4 {[%clk 0:02:55]} 8. O-O {[%clk 0:02:54]}  O-O {[%clk 0:02:55]} 9. Qe2 {[%clk 0:02:54]}  Bg6 {[%clk 0:02:56]} 10. Ne5 {[%clk 0:02:54]}  Nbd7 {[%clk 0:02:54]} 11. Nxg6 {[%clk 0:02:54]}  hxg6 {[%clk 0:02:55]} 12. e4 {[%clk 0:02:52]}  e5 {[%clk 0:02:48]} 13. d5 {[%clk 0:02:51]}  Nb6 {[%clk 0:02:44]} 14. Bb3 {[%clk 0:02:50]}  Bxc3 {[%clk 0:02:27]} 15. bxc3 {[%clk 0:02:50]}  cxd5 {[%clk 0:02:28]} 16. exd5 {[%clk 0:02:50]}  Nbxd5 {[%clk 0:02:26]} 17. Qxe5 {[%clk 0:02:46]}  Re8 {[%clk 0:02:26]} 18. Qd4 {[%clk 0:02:45]}  Rc8 {[%clk 0:02:21]} 19. Bd2 {[%clk 0:02:29]}  Nb6 {[%clk 0:02:16]} 20. Rfe1 {[%clk 0:02:22]}  Qxd4 {[%clk 0:01:51]} 21. cxd4 {[%clk 0:02:22]}  Nbd5 {[%clk 0:01:51]} 22. Rac1 {[%clk 0:02:19]}  Kf8 {[%clk 0:01:45]} 23. Kf1 {[%clk 0:02:17]}  Rxe1+ {[%clk 0:01:43]} 24. Kxe1 {[%clk 0:02:15]}  Rxc1+ {[%clk 0:01:42]} 25. Bxc1 {[%clk 0:02:15]}  b6 {[%clk 0:01:32]} 26. Ba3+ {[%clk 0:02:15]}  Ke8 {[%clk 0:01:32]} 27. f3 {[%clk 0:02:09]}  a5 {[%clk 0:01:31]} 28. Ke2 {[%clk 0:02:01]}  g5 {[%clk 0:01:05]} 29. g3 {[%clk 0:02:00]}  Kd7 {[%clk 0:01:00]} 30. Bf8 {[%clk 0:01:55]}  g6 {[%clk 0:00:58]} 31. Bg7 {[%clk 0:01:54]}  b5 {[%clk 0:00:24]} 32. Bxf6 {[%clk 0:01:44]}  Nxf6 {[%clk 0:00:25]} 33. axb5 {[%clk 0:01:43]}  Ke7 {[%clk 0:00:22]} 34. Kd3 {[%clk 0:01:40]}  Nd7 {[%clk 0:00:22]} 35. Kc4 {[%clk 0:01:37]}  f6 {[%clk 0:00:22]} 36. Kd5 {[%clk 0:01:33]}  a4 {[%clk 0:00:23]} 37. Ba2 {[%clk 0:01:31]}  a3 {[%clk 0:00:22]} 38. Kc6 {[%clk 0:01:30]}  Kd8 {[%clk 0:00:19]} 39. b6 {[%clk 0:01:27]}  f5 {[%clk 0:00:19]} 40. b7 {[%clk 0:01:19]}  g4 {[%clk 0:00:18]} 41. fxg4 {[%clk 0:01:18]}  fxg4 {[%clk 0:00:18]} 42. Be6 {[%clk 0:01:17]}  Nb8+ {[%clk 0:00:18]} 43. Kb6 {[%clk 0:01:10]}  Ke7 {[%clk 0:00:19]} 44. Ba2 {[%clk 0:01:08]}  Kd6 {[%clk 0:00:19]} 45. Ka7 {[%clk 0:01:03]}  Kc7 {[%clk 0:00:19]} 46. d5 {[%clk 0:01:02]}  Nd7 {[%clk 0:00:09]} 47. d6+ {[%clk 0:00:58]}  Kxd6 {[%clk 0:00:10]} 48. b8=Q+ {[%clk 0:00:58]}  Nxb8 {[%clk 0:00:10]} 49. Kxb8 {[%clk 0:00:58]}  Ke5 {[%clk 0:00:10]} 50. Kc7 {[%clk 0:00:54]}  Ke4 {[%clk 0:00:11]} 51. Kd6 {[%clk 0:00:55]}  Kf3 {[%clk 0:00:11]} 52. Ke5 {[%clk 0:00:54]}  Kg2 {[%clk 0:00:12]} 53. Kf4 {[%clk 0:00:54]}  Kxh2 {[%clk 0:00:13]} 54. Kxg4 {[%clk 0:00:55]}  Kg2 {[%clk 0:00:13]} 55. Kf4 {[%clk 0:00:50]}  g5+ {[%clk 0:00:11]} 56. Kg4 {[%clk 0:00:50]}  Kf2 {[%clk 0:00:12]} 57. Bd5 {[%clk 0:00:50]}  Ke3 {[%clk 0:00:07]} 58. Kxg5 {[%clk 0:00:49]}  Kd4 {[%clk 0:00:08]} 59. Ba2 {[%clk 0:00:49]} 1-0


[Site "https://www.chess.com"]

[Event "Titled Tuesday Blitz May 24 Late 2022"]
[White "Proudian, Armen"]
[Black "Seletsky, Grigory"]
[WhiteFideId "2130734"]
[BlackFideId "14112191"]
[WhiteElo "2380"]
[BlackElo "2492"]
[Result "1-0"]
[Round "11"]
[TimeControl "180+1"]
[Date "2022.05.25"]
[WhiteClock "0:00:07"]
[BlackClock "0:00:00"]

1. e4 {[%clk 0:03:00]}  e6 {[%clk 0:02:59]} 2. d4 {[%clk 0:02:59]}  d5 {[%clk 0:02:59]} 3. exd5 {[%clk 0:03:00]}  exd5 {[%clk 0:02:59]} 4. Bd3 {[%clk 0:03:01]}  Bd6 {[%clk 0:02:58]} 5. Qf3 {[%clk 0:03:01]}  c6 {[%clk 0:02:50]} 6. Ne2 {[%clk 0:03:00]}  Qh4 {[%clk 0:02:42]} 7. Bf4 {[%clk 0:02:58]}  Bxf4 {[%clk 0:02:33]} 8. Nxf4 {[%clk 0:02:57]}  Ne7 {[%clk 0:02:29]} 9. Nd2 {[%clk 0:02:56]}  O-O {[%clk 0:02:28]} 10. g3 {[%clk 0:02:52]}  Qf6 {[%clk 0:02:25]} 11. c3 {[%clk 0:02:42]}  Bf5 {[%clk 0:02:23]} 12. O-O {[%clk 0:02:37]}  Bxd3 {[%clk 0:02:20]} 13. Nxd3 {[%clk 0:02:35]}  Qxf3 {[%clk 0:02:16]} 14. Nxf3 {[%clk 0:02:36]}  Nd7 {[%clk 0:02:14]} 15. Rfe1 {[%clk 0:02:34]}  Rfe8 {[%clk 0:02:14]} 16. b3 {[%clk 0:02:32]}  f6 {[%clk 0:02:10]} 17. c4 {[%clk 0:02:25]}  Kf7 {[%clk 0:02:10]} 18. c5 {[%clk 0:02:16]}  g5 {[%clk 0:02:05]} 19. b4 {[%clk 0:02:13]}  h5 {[%clk 0:01:57]} 20. a4 {[%clk 0:02:11]}  Nf5 {[%clk 0:01:57]} 21. h3 {[%clk 0:01:49]}  Re4 {[%clk 0:01:48]} 22. b5 {[%clk 0:01:37]}  Nxd4 {[%clk 0:01:44]} 23. Nd2 {[%clk 0:01:30]}  Rxe1+ {[%clk 0:01:35]} 24. Rxe1 {[%clk 0:01:31]}  Re8 {[%clk 0:01:34]} 25. Rxe8 {[%clk 0:01:27]}  Kxe8 {[%clk 0:01:34]} 26. bxc6 {[%clk 0:01:23]}  bxc6 {[%clk 0:01:34]} 27. f4 {[%clk 0:01:23]}  Ne6 {[%clk 0:01:19]} 28. fxg5 {[%clk 0:01:21]}  fxg5 {[%clk 0:01:18]} 29. Nb3 {[%clk 0:01:21]}  Kd8 {[%clk 0:01:11]} 30. Kf2 {[%clk 0:01:20]}  Kc7 {[%clk 0:01:08]} 31. Ke3 {[%clk 0:01:16]}  Nf6 {[%clk 0:01:03]} 32. Nf2 {[%clk 0:01:06]}  Nd7 {[%clk 0:00:52]} 33. Nd3 {[%clk 0:01:06]}  Kb7 {[%clk 0:00:39]} 34. h4 {[%clk 0:01:01]}  Kc7 {[%clk 0:00:33]} 35. hxg5 {[%clk 0:01:00]}  Nxg5 {[%clk 0:00:33]} 36. Kf4 {[%clk 0:01:01]}  Ne4 {[%clk 0:00:31]} 37. Kf3 {[%clk 0:00:52]}  a6 {[%clk 0:00:31]} 38. a5 {[%clk 0:00:46]}  Kb7 {[%clk 0:00:29]} 39. Nf4 {[%clk 0:00:39]}  Nexc5 {[%clk 0:00:27]} 40. Nxc5+ {[%clk 0:00:36]}  Nxc5 {[%clk 0:00:27]} 41. Nxh5 {[%clk 0:00:36]}  Nb3 {[%clk 0:00:26]} 42. g4 {[%clk 0:00:36]}  Nxa5 {[%clk 0:00:24]} 43. g5 {[%clk 0:00:36]}  Nc4 {[%clk 0:00:24]} 44. Kf4 {[%clk 0:00:35]}  Nd6 {[%clk 0:00:19]} 45. Nf6 {[%clk 0:00:36]}  Nc8 {[%clk 0:00:16]} 46. g6 {[%clk 0:00:34]}  Ne7 {[%clk 0:00:15]} 47. g7 {[%clk 0:00:34]}  Kc7 {[%clk 0:00:14]} 48. Ke5 {[%clk 0:00:34]}  Kd8 {[%clk 0:00:13]} 49. Ke6 {[%clk 0:00:34]}  d4 {[%clk 0:00:13]} 50. Ne4 {[%clk 0:00:34]}  a5 {[%clk 0:00:12]} 51. Nc5 {[%clk 0:00:33]}  Ke8 {[%clk 0:00:11]} 52. Nb7 {[%clk 0:00:21]}  a4 {[%clk 0:00:10]} 53. Nd6+ {[%clk 0:00:19]}  Kd8 {[%clk 0:00:10]} 54. Nf7+ {[%clk 0:00:20]}  Ke8 {[%clk 0:00:09]} 55. Nd6+ {[%clk 0:00:19]}  Kd8 {[%clk 0:00:09]} 56. Nf5 {[%clk 0:00:17]}  Ng8 {[%clk 0:00:05]} 57. Kf7 {[%clk 0:00:12]}  a3 {[%clk 0:00:05]} 58. Kxg8 {[%clk 0:00:12]}  a2 {[%clk 0:00:04]} 59. Kf7 {[%clk 0:00:13]}  a1=Q {[%clk 0:00:03]} 60. g8=Q+ {[%clk 0:00:14]}  Kc7 {[%clk 0:00:03]} 61. Qg7 {[%clk 0:00:10]}  Qa2+ {[%clk 0:00:00]} 62. Ke8+ {[%clk 0:00:07]}  Kb6 {[%clk 0:00:00]} 63. Qxd4+ {[%clk 0:00:07]} 1-0


[Site "https://www.chess.com"]

[Event "Titled Tuesday Blitz May 24 Late 2022"]
[White "Remolar Gallen, Jose"]
[Black "Novikova, Galina"]
[WhiteFideId "2215187"]
[BlackFideId "4157095"]
[WhiteElo "2205"]
[BlackElo "1863"]
[Result "0-1"]
[Round "11"]
[TimeControl "180+1"]
[Date "2022.05.25"]
[WhiteClock "0:00:09"]
[BlackClock "0:01:48"]

1. d4 {[%clk 0:03:00]}  e6 {[%clk 0:03:00]} 2. Nf3 {[%clk 0:03:00]}  f5 {[%clk 0:03:01]} 3. c4 {[%clk 0:02:58]}  Nf6 {[%clk 0:03:02]} 4. Nc3 {[%clk 0:02:59]}  Be7 {[%clk 0:03:02]} 5. g3 {[%clk 0:02:59]}  O-O {[%clk 0:03:03]} 6. Bg2 {[%clk 0:02:59]}  d6 {[%clk 0:03:04]} 7. O-O {[%clk 0:03:00]}  a5 {[%clk 0:03:05]} 8. Re1 {[%clk 0:02:43]}  Ne4 {[%clk 0:02:56]} 9. Qc2 {[%clk 0:02:38]}  Nxc3 {[%clk 0:02:52]} 10. bxc3 {[%clk 0:02:31]}  Nc6 {[%clk 0:02:50]} 11. e4 {[%clk 0:02:26]}  e5 {[%clk 0:02:50]} 12. d5 {[%clk 0:01:54]}  Nb8 {[%clk 0:02:49]} 13. c5 {[%clk 0:01:53]}  Na6 {[%clk 0:02:48]} 14. c6 {[%clk 0:01:46]}  b6 {[%clk 0:02:47]} 15. Ba3 {[%clk 0:01:38]}  Qe8 {[%clk 0:02:46]} 16. Nd2 {[%clk 0:01:29]}  f4 {[%clk 0:02:45]} 17. Nc4 {[%clk 0:01:20]}  Qh5 {[%clk 0:02:37]} 18. Qd3 {[%clk 0:01:09]}  Nc5 {[%clk 0:02:34]} 19. Bxc5 {[%clk 0:01:09]}  bxc5 {[%clk 0:02:35]} 20. Qd1 {[%clk 0:00:51]}  Bg4 {[%clk 0:02:32]} 21. f3 {[%clk 0:00:50]}  Bh3 {[%clk 0:02:33]} 22. g4 {[%clk 0:00:49]}  Qh4 {[%clk 0:02:33]} 23. Qe2 {[%clk 0:00:46]}  h5 {[%clk 0:02:33]} 24. gxh5 {[%clk 0:00:43]}  Qxh5 {[%clk 0:02:28]} 25. Kh1 {[%clk 0:00:40]}  Rf6 {[%clk 0:02:24]} 26. Rg1 {[%clk 0:00:39]}  Rh6 {[%clk 0:02:23]} 27. Bxh3 {[%clk 0:00:39]}  Qxh3 {[%clk 0:02:23]} 28. Rg2 {[%clk 0:00:39]}  Bf6 {[%clk 0:02:22]} 29. Rag1 {[%clk 0:00:40]}  Kf7 {[%clk 0:02:22]} 30. a4 {[%clk 0:00:38]}  Rah8 {[%clk 0:02:22]} 31. Nxa5 {[%clk 0:00:34]}  Bh4 {[%clk 0:02:22]} 32. Rd1 {[%clk 0:00:29]}  Bg3 {[%clk 0:02:21]} 33. Rd2 {[%clk 0:00:29]}  Ra8 {[%clk 0:02:12]} 34. Qb5 {[%clk 0:00:26]}  Bxh2 {[%clk 0:02:07]} 35. Rxh2 {[%clk 0:00:25]}  Qg3 {[%clk 0:02:08]} 36. Rxh6 {[%clk 0:00:15]}  Qe1+ {[%clk 0:02:05]} 37. Kg2 {[%clk 0:00:13]}  Qxd2+ {[%clk 0:02:05]} 38. Kh3 {[%clk 0:00:13]}  gxh6 {[%clk 0:02:04]} 39. Qb7 {[%clk 0:00:14]}  Re8 {[%clk 0:01:53]} 40. Qxc7+ {[%clk 0:00:14]}  Re7 {[%clk 0:01:54]} 41. Qxd6 {[%clk 0:00:14]}  Qe1 {[%clk 0:01:49]} 42. Kg4 {[%clk 0:00:10]}  Qg3+ {[%clk 0:01:48]} 43. Kh5 {[%clk 0:00:09]}  Qg5# {[%clk 0:01:48]} 0-1


[Site "https://www.chess.com"]

[Event "Titled Tuesday Blitz May 24 Late 2022"]
[White "Romanchuk, Viktor"]
[Black "Santos Ruiz, Miguel"]
[WhiteFideId "14109271"]
[BlackFideId "22291482"]
[WhiteElo "2242"]
[BlackElo "2486"]
[Result "0-1"]
[Round "11"]
[TimeControl "180+1"]
[Date "2022.05.24"]
[WhiteClock "0:00:29"]
[BlackClock "0:00:57"]

1. d4 {[%clk 0:03:00]}  f5 {[%clk 0:02:57]} 2. Nc3 {[%clk 0:02:59]}  Nf6 {[%clk 0:02:56]} 3. Bg5 {[%clk 0:02:59]}  d5 {[%clk 0:02:56]} 4. f3 {[%clk 0:02:58]}  Nc6 {[%clk 0:02:55]} 5. Qd2 {[%clk 0:02:58]}  e6 {[%clk 0:02:50]} 6. O-O-O {[%clk 0:02:36]}  Be7 {[%clk 0:02:48]} 7. e4 {[%clk 0:02:34]}  fxe4 {[%clk 0:02:45]} 8. fxe4 {[%clk 0:02:32]}  dxe4 {[%clk 0:02:40]} 9. Bb5 {[%clk 0:02:24]}  O-O {[%clk 0:02:37]} 10. Bxf6 {[%clk 0:02:16]}  Bxf6 {[%clk 0:02:30]} 11. Nxe4 {[%clk 0:02:15]}  Bd7 {[%clk 0:02:20]} 12. Nf3 {[%clk 0:02:06]}  a6 {[%clk 0:02:16]} 13. Ba4 {[%clk 0:01:54]}  Ne7 {[%clk 0:02:06]} 14. Bxd7 {[%clk 0:01:36]}  Qxd7 {[%clk 0:02:06]} 15. Nc5 {[%clk 0:01:35]}  Qd5 {[%clk 0:02:07]} 16. Qe3 {[%clk 0:01:27]}  Qxa2 {[%clk 0:02:04]} 17. Qxe6+ {[%clk 0:01:27]}  Qxe6 {[%clk 0:02:03]} 18. Nxe6 {[%clk 0:01:28]}  Rfc8 {[%clk 0:02:04]} 19. c3 {[%clk 0:01:23]}  a5 {[%clk 0:01:59]} 20. Kc2 {[%clk 0:01:22]}  a4 {[%clk 0:01:52]} 21. Nc5 {[%clk 0:01:16]}  Nd5 {[%clk 0:01:36]} 22. Rhe1 {[%clk 0:00:56]}  a3 {[%clk 0:01:32]} 23. Ra1 {[%clk 0:00:44]}  axb2 {[%clk 0:01:21]} 24. Rxa8 {[%clk 0:00:39]}  Rxa8 {[%clk 0:01:22]} 25. Kxb2 {[%clk 0:00:39]}  Be7 {[%clk 0:01:03]} 26. Nd3 {[%clk 0:00:36]}  Bf8 {[%clk 0:00:58]} 27. c4 {[%clk 0:00:33]}  Nb4 {[%clk 0:00:56]} 28. Nxb4 {[%clk 0:00:30]}  Bxb4 {[%clk 0:00:57]} 29. Ra1 {[%clk 0:00:29]}  Bc3+ {[%clk 0:00:57]} 0-1


[Site "https://www.chess.com"]

[Event "Titled Tuesday Blitz May 24 Late 2022"]
[White "Rychagov, Andrey"]
[Black "Rustemov, Alexander"]
[WhiteFideId "4119932"]
[BlackFideId "4119002"]
[WhiteElo "2500"]
[BlackElo "2843"]
[Result "0-1"]
[Round "11"]
[TimeControl "180+1"]
[Date "2022.05.24"]
[WhiteClock "0:00:02"]
[BlackClock "0:00:57"]

1. d4 {[%clk 0:03:00]}  f5 {[%clk 0:02:56]} 2. Bf4 {[%clk 0:02:57]}  Nf6 {[%clk 0:02:53]} 3. e3 {[%clk 0:02:57]}  d6 {[%clk 0:02:46]} 4. Nf3 {[%clk 0:02:55]}  g6 {[%clk 0:02:43]} 5. Bc4 {[%clk 0:02:54]}  e6 {[%clk 0:02:38]} 6. Nbd2 {[%clk 0:02:45]}  Bg7 {[%clk 0:02:34]} 7. c3 {[%clk 0:02:43]}  Qe7 {[%clk 0:02:31]} 8. h3 {[%clk 0:02:33]}  Nc6 {[%clk 0:02:30]} 9. b4 {[%clk 0:02:22]}  e5 {[%clk 0:02:25]} 10. Bh2 {[%clk 0:02:22]}  e4 {[%clk 0:02:09]} 11. Ng1 {[%clk 0:02:19]}  Be6 {[%clk 0:02:00]} 12. Qb3 {[%clk 0:02:02]}  d5 {[%clk 0:01:55]} 13. Bb5 {[%clk 0:01:59]}  O-O {[%clk 0:01:52]} 14. Ne2 {[%clk 0:01:58]}  Nd8 {[%clk 0:01:46]} 15. Nf4 {[%clk 0:01:50]}  c6 {[%clk 0:01:45]} 16. Be2 {[%clk 0:01:50]}  Bf7 {[%clk 0:01:39]} 17. h4 {[%clk 0:01:43]}  h6 {[%clk 0:01:39]} 18. c4 {[%clk 0:01:40]}  g5 {[%clk 0:01:35]} 19. hxg5 {[%clk 0:01:41]}  hxg5 {[%clk 0:01:36]} 20. Nh3 {[%clk 0:01:41]}  Ng4 {[%clk 0:01:29]} 21. c5 {[%clk 0:01:36]}  Nxh2 {[%clk 0:01:23]} 22. Rxh2 {[%clk 0:01:36]}  Ne6 {[%clk 0:01:23]} 23. Qc2 {[%clk 0:01:15]}  a5 {[%clk 0:01:22]} 24. Rb1 {[%clk 0:00:53]}  Bg6 {[%clk 0:01:07]} 25. b5 {[%clk 0:00:48]}  f4 {[%clk 0:01:07]} 26. Ng1 {[%clk 0:00:45]}  fxe3 {[%clk 0:01:00]} 27. fxe3 {[%clk 0:00:45]}  Qc7 {[%clk 0:01:00]} 28. Rh3 {[%clk 0:00:40]}  Qf7 {[%clk 0:00:57]} 29. Rh1 {[%clk 0:00:02]}  Qf2+ {[%clk 0:00:56]} 30. Kd1 {[%clk 0:00:02]}  Qxg2 {[%clk 0:00:57]} 0-1


[Site "https://www.chess.com"]

[Event "Titled Tuesday Blitz May 24 Late 2022"]
[White "Senthilkumar, Pranav"]
[Black "Yurovskykh, Oleksandr"]
[WhiteFideId "2083477"]
[BlackFideId "14134020"]
[WhiteElo "2435"]
[BlackElo "2292"]
[Result "1-0"]
[Round "11"]
[TimeControl "180+1"]
[Date "2022.05.24"]
[WhiteClock "0:00:12"]
[BlackClock "0:00:03"]

1. Nf3 {[%clk 0:03:00]}  d5 {[%clk 0:02:57]} 2. g3 {[%clk 0:03:01]}  c6 {[%clk 0:02:57]} 3. Bg2 {[%clk 0:03:02]}  Bg4 {[%clk 0:02:57]} 4. O-O {[%clk 0:03:03]}  Nd7 {[%clk 0:02:58]} 5. c4 {[%clk 0:03:03]}  Bxf3 {[%clk 0:02:58]} 6. Bxf3 {[%clk 0:03:03]}  Ne5 {[%clk 0:02:58]} 7. cxd5 {[%clk 0:02:59]}  Nxf3+ {[%clk 0:02:58]} 8. exf3 {[%clk 0:03:00]}  cxd5 {[%clk 0:02:41]} 9. Qb3 {[%clk 0:02:59]}  Qd7 {[%clk 0:02:41]} 10. d4 {[%clk 0:02:58]}  e6 {[%clk 0:02:40]} 11. Bf4 {[%clk 0:02:57]}  Ne7 {[%clk 0:02:40]} 12. Nc3 {[%clk 0:02:57]}  Nc6 {[%clk 0:02:38]} 13. Rfe1 {[%clk 0:02:54]}  Be7 {[%clk 0:02:38]} 14. Rad1 {[%clk 0:02:51]}  O-O {[%clk 0:02:37]} 15. Na4 {[%clk 0:02:44]}  Na5 {[%clk 0:02:32]} 16. Qc2 {[%clk 0:02:34]}  Rfc8 {[%clk 0:02:32]} 17. Nc5 {[%clk 0:02:32]}  Bxc5 {[%clk 0:02:26]} 18. dxc5 {[%clk 0:02:33]}  b6 {[%clk 0:02:26]} 19. b4 {[%clk 0:02:32]}  Nb7 {[%clk 0:02:15]} 20. Be3 {[%clk 0:02:30]}  bxc5 {[%clk 0:02:15]} 21. bxc5 {[%clk 0:02:31]}  Na5 {[%clk 0:02:12]} 22. Qc3 {[%clk 0:02:26]}  Nc6 {[%clk 0:02:11]} 23. f4 {[%clk 0:02:22]}  g6 {[%clk 0:02:08]} 24. f5 {[%clk 0:02:13]}  gxf5 {[%clk 0:02:05]} 25. Bh6 {[%clk 0:02:12]}  d4 {[%clk 0:02:02]} 26. Qd2 {[%clk 0:02:10]}  f6 {[%clk 0:01:46]} 27. Qe2 {[%clk 0:02:05]}  e5 {[%clk 0:01:39]} 28. Qh5 {[%clk 0:02:04]}  Ne7 {[%clk 0:01:31]} 29. Qh4 {[%clk 0:01:56]}  Rc6 {[%clk 0:01:09]} 30. g4 {[%clk 0:01:36]}  f4 {[%clk 0:00:56]} 31. g5 {[%clk 0:01:36]}  Ng6 {[%clk 0:00:50]} 32. Qh5 {[%clk 0:01:34]}  f5 {[%clk 0:00:49]} 33. Qf3 {[%clk 0:01:27]}  e4 {[%clk 0:00:39]} 34. Qb3+ {[%clk 0:01:26]}  Kh8 {[%clk 0:00:38]} 35. Qc4 {[%clk 0:01:22]}  Rd8 {[%clk 0:00:37]} 36. Kg2 {[%clk 0:01:13]}  Qd5 {[%clk 0:00:37]} 37. Qxd5 {[%clk 0:00:54]}  Rxd5 {[%clk 0:00:35]} 38. Rb1 {[%clk 0:00:55]}  Rdxc5 {[%clk 0:00:31]} 39. Rb7 {[%clk 0:00:54]}  Rc7 {[%clk 0:00:31]} 40. Rb8+ {[%clk 0:00:53]}  Rc8 {[%clk 0:00:31]} 41. Reb1 {[%clk 0:00:49]}  d3 {[%clk 0:00:18]} 42. R8b7 {[%clk 0:00:49]}  R5c7 {[%clk 0:00:17]} 43. Rxc7 {[%clk 0:00:47]}  f3+ {[%clk 0:00:03]} 44. Kg1 {[%clk 0:00:44]}  Rd8 {[%clk 0:00:02]} 45. Rbb7 {[%clk 0:00:20]}  d2 {[%clk 0:00:02]} 46. Rxh7+ {[%clk 0:00:20]}  Kg8 {[%clk 0:00:02]} 47. Rbg7+ {[%clk 0:00:20]}  Kf8 {[%clk 0:00:03]} 48. Rxg6+ {[%clk 0:00:13]}  Ke8 {[%clk 0:00:03]} 49. Re6# {[%clk 0:00:12]} 1-0


[Site "https://www.chess.com"]

[Event "Titled Tuesday Blitz May 24 Late 2022"]
[White "Turutin, Alexander"]
[Black "Sarkar, Justin"]
[WhiteFideId "4180623"]
[BlackFideId "2010011"]
[WhiteElo "2402"]
[BlackElo "2020"]
[Result "1-0"]
[Round "11"]
[TimeControl "180+1"]
[Date "2022.05.25"]
[WhiteClock "0:00:08"]
[BlackClock "0:00:01"]

1. g3 {[%clk 0:02:54]}  Nf6 {[%clk 0:02:28]} 2. Bg2 {[%clk 0:02:53]}  c5 {[%clk 0:02:27]} 3. c4 {[%clk 0:02:49]}  d5 {[%clk 0:02:22]} 4. cxd5 {[%clk 0:02:49]}  Nxd5 {[%clk 0:02:23]} 5. Nc3 {[%clk 0:02:49]}  Nxc3 {[%clk 0:02:11]} 6. bxc3 {[%clk 0:02:50]}  e5 {[%clk 0:02:10]} 7. d3 {[%clk 0:02:35]}  Be7 {[%clk 0:02:08]} 8. Nf3 {[%clk 0:02:32]}  Nc6 {[%clk 0:02:06]} 9. O-O {[%clk 0:02:32]}  O-O {[%clk 0:02:06]} 10. Qb3 {[%clk 0:02:21]}  Rb8 {[%clk 0:01:56]} 11. Nd2 {[%clk 0:02:15]}  Be6 {[%clk 0:01:51]} 12. Qc2 {[%clk 0:02:13]}  Qd7 {[%clk 0:01:44]} 13. a4 {[%clk 0:02:12]}  b6 {[%clk 0:01:29]} 14. Nc4 {[%clk 0:02:06]}  Bd5 {[%clk 0:01:20]} 15. Bb2 {[%clk 0:01:35]}  Bxg2 {[%clk 0:01:16]} 16. Kxg2 {[%clk 0:01:36]}  f5 {[%clk 0:01:13]} 17. Qb3 {[%clk 0:01:06]}  Kh8 {[%clk 0:01:11]} 18. Ne3 {[%clk 0:00:50]}  Rbd8 {[%clk 0:01:03]} 19. c4 {[%clk 0:00:50]}  f4 {[%clk 0:00:45]} 20. Nd5 {[%clk 0:00:49]}  Bd6 {[%clk 0:00:43]} 21. f3 {[%clk 0:00:47]}  fxg3 {[%clk 0:00:30]} 22. hxg3 {[%clk 0:00:47]}  Nd4 {[%clk 0:00:30]} 23. Qd1 {[%clk 0:00:40]}  Rde8 {[%clk 0:00:25]} 24. e4 {[%clk 0:00:39]}  Re6 {[%clk 0:00:21]} 25. Bxd4 {[%clk 0:00:29]}  cxd4 {[%clk 0:00:16]} 26. Rh1 {[%clk 0:00:25]}  Rg6 {[%clk 0:00:15]} 27. Rh3 {[%clk 0:00:22]}  Kg8 {[%clk 0:00:14]} 28. Qe2 {[%clk 0:00:20]}  Bc5 {[%clk 0:00:12]} 29. a5 {[%clk 0:00:18]}  h6 {[%clk 0:00:05]} 30. Rh5 {[%clk 0:00:17]}  Re6 {[%clk 0:00:05]} 31. axb6 {[%clk 0:00:16]}  axb6 {[%clk 0:00:04]} 32. g4 {[%clk 0:00:13]}  Qe8 {[%clk 0:00:04]} 33. Rf5 {[%clk 0:00:13]}  Rxf5 {[%clk 0:00:03]} 34. exf5 {[%clk 0:00:13]}  Rd6 {[%clk 0:00:02]} 35. Ra7 {[%clk 0:00:13]}  Kh8 {[%clk 0:00:02]} 36. Qd2 {[%clk 0:00:08]}  b5 {[%clk 0:00:02]} 37. f6 {[%clk 0:00:08]}  bxc4 {[%clk 0:00:01]} 38. fxg7+ {[%clk 0:00:08]}  Kg8 {[%clk 0:00:01]} 39. Qxh6 {[%clk 0:00:08]} 1-0


[Site "https://www.chess.com"]